fUSD/lending_fUSD_20250906
["ID","MTS","AMOUNT","RATE_DAILY","PERIOD"]
[383945201,1757189445196,-216.24,0.00031193,30]
[383945204,1757189445212,-3263.48701256,0.00031194,2]
[383945207,1757189445228,-2000.0,0.000312,2]
[383945209,1757189445242,-2000.0,0.00031216,5]
[383945212,1757189445257,-451.6568342,0.00031216,5]
[383945214,1757189445272,-150.49,0.00031246,2]
[383945217,1757189445287,-9733.02,0.000313,7]
[383945220,1757189445304,-9296.99,0.000313,2]
[383945222,1757189445320,-151.0,0.000313,7]
[383945225,1757189445335,-151.0,0.000313,7]
[383945228,1757189445349,-151.0,0.000313,7]
[383945230,1757189445366,-151.0,0.000313,7]
[383945233,1757189445384,-250.325379,0.000313,7]
[383945235,1757189445399,-151.0,0.000313,7]
[383945238,1757189445415,-151.0,0.000313,7]
[383945241,1757189445430,-151.0,0.000313,7]
[383945243,1757189445447,-151.0,0.000313,7]
[383945246,1757189445464,-3011.38049103,0.000313,7]
[383945249,1757189445480,-514.85095374,0.000313,7]
[383945251,1757189445495,-1789.298,0.00031337,29]
[383945254,1757189445510,-187.954,0.00031337,29]
[383945256,1757189445525,-150.0,0.00031378,3]
[383945258,1757189445541,-200.0,0.00031378,2]
[383945259,1757189445557,-200.0,0.00031378,3]
[383945260,1757189445572,-200.0,0.00031378,3]
[383945261,1757189445588,-200.0,0.00031378,3]
[383945262,1757189445603,-150.0,0.00031378,3]
[383945263,1757189445620,-200.0,0.00031378,3]
[383945264,1757189445636,-200.0,0.00031378,3]
[383945265,1757189445652,-150.0,0.00031378,3]
[383945266,1757189445667,-500.0,0.00031378,2]
[383945269,1757189445683,-500.0,0.00031378,2]
[383945272,1757189445698,-500.0,0.00031378,2]
[383945274,1757189445718,-500.0,0.00031378,2]
[383945277,1757189445733,-150.0,0.00031378,2]
[383945279,1757189445748,-200.0,0.00031378,2]
[383945282,1757189445763,-150.0,0.00031378,2]
[383945285,1757189445778,-200.0,0.00031378,2]
[383945287,1757189445793,-500.0,0.00031378,2]
[383945290,1757189445809,-500.0,0.00031378,2]
[383945293,1757189445826,-150.0,0.00031378,2]
[383945295,1757189445840,-150.0,0.00031378,2]
[383945298,1757189445856,-500.0,0.00031378,2]
[383945300,1757189445871,-500.0,0.00031378,2]
[383945303,1757189445886,-3011.38049103,0.000314,3]
[383945305,1757189445901,-514.85095374,0.000314,3]
[383945308,1757189445916,-160.0,0.000314,3]
[383945311,1757189445932,-212.67823062,0.000314,3]
[383945313,1757189445947,-166.66,0.00031466,2]
[383945316,1757189445963,-2000.0,0.000315,2]
[383945319,1757189445978,-1425.0,0.0003153,2]
[383945321,1757189445993,-13645.8450338,0.00031576,2]
[383945324,1757189446008,-200.0,0.00031652,3]
[383945326,1757189446023,-151.88234701,0.00031652,3]
[383945329,1757189446037,-204.5099004,0.00031652,3]
[383945331,1757189446052,-500.0,0.00031652,2]
[383945334,1757189446067,-500.0,0.00031652,2]
[383945367,1757189446380,-500.0,0.00031652,2]
[383945372,1757189446421,-500.0,0.00031652,2]
[383945374,1757189446431,-150.0,0.00031652,2]
[383945376,1757189446441,-150.0,0.00031652,2]
[383945378,1757189446451,-500.0,0.00031652,2]
[383945380,1757189446460,-335.19890001,0.00031652,2]
[383945382,1757189446469,-150.0,0.00031652,2]
[383945384,1757189446478,-208.55659711,0.00031652,2]
[383945386,1757189446490,-500.0,0.00031652,2]
[383945388,1757189446500,-500.0,0.00031652,2]
[383945390,1757189446511,-150.0,0.00031652,3]
[383945392,1757189446521,-150.0,0.00031652,3]
[383945394,1757189446532,-150.0,0.00031652,3]
[383945397,1757189446542,-150.0,0.00031652,3]
[383945399,1757189446551,-150.0,0.00031652,3]
[383945401,1757189446562,-500.0,0.00031652,3]
[383945403,1757189446572,-150.0,0.00031652,3]
[383945405,1757189446581,-500.0,0.00031652,3]
[383945407,1757189446591,-500.0,0.00031652,3]
[383945409,1757189446601,-150.0,0.00031652,3]
[383945411,1757189446611,-150.0,0.00031652,3]
[383945413,1757189446621,-150.0,0.00031652,3]
[383945415,1757189446630,-500.0,0.00031652,3]
[383945417,1757189446640,-150.1193247,0.00031652,3]
[383945419,1757189446650,-150.0,0.00031652,3]
[383945421,1757189446659,-153.1392916,0.00031652,3]
[383945423,1757189446669,-150.0,0.00031652,3]
[383945425,1757189446679,-13291.67777036,0.00031695,2]
[383945427,1757189446690,-1039.8,0.000317,7]
[383945429,1757189446699,-2484.26149456,0.00031764,5]
[383945431,1757189446708,-315.98,0.000318,30]
[383945433,1757189446718,-500.0,0.00031926,2]
[383945435,1757189446728,-500.0,0.00031926,2]
[383945437,1757189446737,-500.0,0.00031926,2]
[383945439,1757189446747,-323.16,0.00031926,2]
[383945441,1757189446755,-200.0,0.00031926,2]
[383945443,1757189446764,-150.0,0.00031926,2]
[383945445,1757189446774,-500.0,0.00031926,2]
[383945447,1757189446784,-200.0,0.00031926,2]
[383945449,1757189446793,-500.0,0.00031926,2]
[383945451,1757189446802,-500.0,0.00031926,2]
[383945453,1757189446811,-150.0,0.00031926,3]
[383945455,1757189446821,-150.0,0.00031926,3]
[383945457,1757189446831,-150.0,0.00031926,3]
[383945459,1757189446841,-500.0,0.00031926,3]
[383945461,1757189446850,-150.0,0.00031926,3]
[383945463,1757189446859,-500.0,0.00031926,3]
[383945465,1757189446868,-500.0,0.00031926,3]
[383945467,1757189446878,-150.0,0.00031926,3]
[383945469,1757189446889,-500.0,0.00031926,3]
[383945471,1757189446898,-150.0,0.00031926,3]
[383945473,1757189446907,-544.81687817,0.0003194,5]
[383945475,1757189446917,-151.0,0.00031965,7]
[383945477,1757189446927,-300.0,0.00031968,10]
[383945479,1757189446936,-160.0,0.00031969,2]
[383945481,1757189446946,-695.39793187,0.00031969,2]
[383945483,1757189446956,-267.46074303,0.00031969,2]
[383945485,1757189446965,-151.0,0.00031969,2]
[383945487,1757189446975,-151.0,0.00031969,2]
[383945489,1757189446984,-3000.0,0.00031969,2]
[383945491,1757189446993,-151.0,0.00031969,2]
[383945493,1757189447003,-151.0,0.00031969,2]
[383945495,1757189447012,-151.0,0.00031969,2]
[383945497,1757189447022,-151.0,0.00031969,2]
[383945499,1757189447031,-151.0,0.00031969,2]
[383945501,1757189447040,-500.0,0.00031969,2]
[383945503,1757189447049,-500.0,0.00031969,2]
[383945505,1757189447059,-151.0,0.00031969,2]
[383945507,1757189447068,-500.0,0.00031969,2]
[383945509,1757189447077,-500.0,0.00031969,2]
[383945511,1757189447087,-500.0,0.00031969,2]
[383945513,1757189447096,-250.0,0.00031969,2]
[383945515,1757189447105,-201.93286099,0.00031969,2]
[383945517,1757189447114,-500.0,0.00031969,2]
[383945519,1757189447124,-250.0,0.00031969,2]
[383945521,1757189447134,-438.31765404,0.00031969,2]
[383945608,1757189447981,-61.68234596,0.00031969,2]
[383945610,1757189447991,-250.0,0.00031969,2]
[383945612,1757189448000,-47.37938987,0.00031969,2]
[383945635,1757189449074,-452.62061013,0.00031969,2]
[383945636,1757189449085,-250.0,0.00031969,2]
[383945637,1757189449095,-500.0,0.00031969,2]
[383945638,1757189449106,-1000.0,0.00031969,2]
[383945639,1757189449116,-250.0,0.00031969,2]
[383945640,1757189449125,-500.0,0.00031969,2]
[383945641,1757189449135,-250.0,0.00031969,2]
[383945642,1757189449145,-1000.0,0.00031969,2]
[383945643,1757189449155,-500.0,0.00031969,2]
[383945644,1757189449165,-250.0,0.00031969,2]
[383945645,1757189449175,-1000.0,0.00031969,2]
[383945646,1757189449185,-500.0,0.00031969,2]
[383945647,1757189449195,-250.0,0.00031969,2]
[383945648,1757189449205,-1000.0,0.00031969,2]
[383945649,1757189449215,-250.0,0.00031969,2]
[383945650,1757189449225,-1000.0,0.00031969,2]
[383945651,1757189449234,-250.0,0.00031969,2]
[383945652,1757189449245,-1000.0,0.00031969,2]
[383945653,1757189449254,-250.0,0.00031969,2]
[383945654,1757189449263,-1000.0,0.00031969,2]
[383945655,1757189449272,-250.0,0.00031969,2]
[383945656,1757189449282,-158.23857396,0.00031969,2]
[383945657,1757189449291,-1000.0,0.00031969,2]
[383945658,1757189449300,-250.0,0.00031969,2]
[383945659,1757189449309,-151.0,0.00031969,2]
[383945660,1757189449319,-250.0,0.00031969,2]
[383945661,1757189449328,-1000.0,0.00031969,2]
[383945662,1757189449337,-151.0,0.00031969,2]
[383945663,1757189449347,-250.0,0.00031969,2]
[383945664,1757189449356,-1000.0,0.00031969,2]
[383945665,1757189449365,-250.0,0.00031969,2]
[383945666,1757189449374,-151.0,0.00031969,2]
[383945667,1757189449383,-250.0,0.00031969,2]
[383945668,1757189449392,-1000.0,0.00031969,2]
[383945669,1757189449401,-250.0,0.00031969,2]
[383945670,1757189449410,-151.0,0.00031969,2]
[383945671,1757189449419,-250.0,0.00031969,2]
[383945672,1757189449428,-1000.0,0.00031969,2]
[383945673,1757189449442,-250.0,0.00031969,2]
[383945674,1757189449451,-151.0,0.00031969,2]
[383945675,1757189449460,-250.0,0.00031969,2]
[383945676,1757189449469,-250.0,0.00031969,2]
[383945677,1757189449478,-151.0,0.00031969,2]
[383945678,1757189449487,-250.0,0.00031969,2]
[383945679,1757189449497,-250.0,0.00031969,2]
[383945680,1757189449506,-250.0,0.00031969,2]
[383945681,1757189449516,-151.0,0.00031969,2]
[383945682,1757189449526,-250.0,0.00031969,2]
[383945683,1757189449536,-151.0,0.00031969,2]
[383945684,1757189449545,-250.0,0.00031969,2]
[383945685,1757189449555,-151.0,0.00031969,2]
[383945686,1757189449564,-250.0,0.00031969,2]
[383945687,1757189449573,-250.0,0.00031969,2]
[383945688,1757189449583,-250.0,0.00031969,2]
[383945689,1757189449592,-151.0,0.00031969,2]
[383945690,1757189449601,-250.0,0.00031969,2]
[383945691,1757189449610,-250.0,0.00031969,2]
[383945692,1757189449619,-250.0,0.00031969,2]
[383945693,1757189449628,-322.6107,0.00031969,2]
[383945694,1757189449637,-151.0,0.00031969,2]
[383945695,1757189449646,-250.0,0.00031969,2]
[383945696,1757189449655,-250.0,0.00031969,2]
[383945697,1757189449664,-250.0,0.00031969,2]
[383945698,1757189449673,-151.0,0.00031969,2]
[383945699,1757189449682,-250.0,0.00031969,2]
[383945700,1757189449691,-250.0,0.00031969,2]
[383945701,1757189449700,-250.0,0.00031969,2]
[383945702,1757189449710,-250.0,0.00031969,2]
[383945703,1757189449720,-250.0,0.00031969,2]
[383945704,1757189449729,-250.0,0.00031969,2]
[383945705,1757189449738,-250.0,0.00031969,2]
[383945706,1757189449747,-250.0,0.00031969,2]
[383945707,1757189449756,-151.0,0.00031969,2]
[383945708,1757189449765,-250.0,0.00031969,2]
[383945709,1757189449774,-250.0,0.00031969,2]
[383945710,1757189449783,-250.0,0.00031969,2]
[383945711,1757189449792,-151.0,0.00031969,2]
[383945712,1757189449801,-250.0,0.00031969,2]
[383945713,1757189449809,-250.0,0.00031969,2]
[383945714,1757189449818,-151.0,0.00031969,2]
[383945715,1757189449828,-250.0,0.00031969,2]
[383945716,1757189449837,-250.0,0.00031969,2]
[383945717,1757189449846,-250.0,0.00031969,2]
[383945718,1757189449856,-250.0,0.00031969,2]
[383945719,1757189449866,-250.0,0.00031969,2]
[383945720,1757189449876,-250.0,0.00031969,2]
[383945721,1757189449886,-250.0,0.00031969,2]
[383945722,1757189449896,-250.0,0.00031969,2]
[383945723,1757189449907,-250.0,0.00031969,2]
[383945724,1757189449916,-250.0,0.00031969,2]
[383945725,1757189449927,-500.0,0.00032,5]
[383945726,1757189449936,-160.0,0.00032,3]
[383945727,1757189449946,-1425.0,0.00032002,2]
[383945728,1757189449956,-151.0,0.00032024,2]
[383945729,1757189449966,-471.79,0.00032071,30]
[383945730,1757189449975,-216.24,0.00032071,30]
[383945731,1757189449985,-20912.62215767,0.00032078,2]
[383945732,1757189449994,-2334.36839875,0.00032086,2]
[383945733,1757189452574,-1539.30009018,0.00032086,2]
[383945734,1757189452584,-1425.0,0.00032092,2]
[383945735,1757189452594,-1425.0,0.0003211,2]
[383945736,1757189452819,-164.69,0.00032158,2]
[383945737,1757189452828,-500.0,0.000322,2]
[383945738,1757189452838,-500.0,0.000322,2]
[383945739,1757189452848,-500.0,0.000322,2]
[383945740,1757189452858,-500.0,0.000322,2]
[383945741,1757189452867,-186.99789271,0.000322,2]
[383945742,1757189452876,-500.0,0.000322,2]
[383945743,1757189452886,-500.0,0.000322,2]
[383945744,1757189452896,-500.0,0.000322,2]
[383945745,1757189452905,-150.0,0.000322,3]
[383945746,1757189452915,-150.0,0.000322,3]
[383945747,1757189452924,-150.0,0.000322,3]
[383945748,1757189452933,-293.80822853,0.000322,3]
[383945749,1757189453094,-206.19177147,0.000322,3]
[383945750,1757189453104,-150.0,0.000322,3]
[383945751,1757189453113,-500.0,0.000322,3]
[383945752,1757189453123,-500.0,0.000322,3]
[383945753,1757189453132,-150.0,0.000322,3]
[383945754,1757189453142,-500.0,0.000322,3]
[383945755,1757189453151,-200.0,0.000322,3]
[383945756,1757189453161,-1425.0,0.00032218,2]
[383945757,1757189453170,-1425.0,0.00032245,2]
[383945758,1757189453179,-1578.0,0.00032335,2]
[383945759,1757189453188,-628.095,0.00032335,2]
[383945760,1757189453198,-591.581,0.00032335,2]
[383945761,1757189453207,-830.0,0.00032335,2]
[383945762,1757189453218,-1425.0,0.00032343,2]
[383945763,1757189453227,-1591.0183,0.00032356,10]
[383945764,1757189453236,-15375.28386137,0.00032378,2]
[383945765,1757189453246,-1425.0,0.00032391,2]
[383945766,1757189453255,-9733.02,0.000324,7]
[383945767,1757189453265,-9296.99,0.000324,2]
[383945768,1757189453275,-154.349297,0.00032413,7]
[383945769,1757189453284,-154.349297,0.00032413,7]
[383945770,1757189453293,-154.349297,0.00032413,7]
[383945771,1757189453302,-154.349297,0.00032413,7]
[383945772,1757189453311,-802.0,0.00032427,2]
[383945773,1757189453321,-802.0,0.00032427,2]
[383945774,1757189453331,-534.83,0.00032427,2]
[383945775,1757189453341,-470.72,0.00032427,2]
[383945776,1757189453350,-470.72,0.00032427,2]
[383945777,1757189453359,-802.0,0.00032427,2]
[383945778,1757189453369,-802.0,0.00032427,2]
[383945779,1757189453378,-470.72,0.00032427,2]
[383945780,1757189453387,-470.72,0.00032427,2]
[383945781,1757189453396,-802.0,0.00032427,2]
[383945782,1757189453405,-802.0,0.00032427,2]
[383945783,1757189453418,-936.37,0.00032427,2]
[383945784,1757189453427,-802.0,0.00032427,2]
[383945785,1757189453436,-500.0,0.00032474,2]
[383945786,1757189453445,-500.0,0.00032474,2]
[383945787,1757189453454,-500.0,0.00032474,2]
[383945788,1757189453464,-500.0,0.00032474,2]
[383945789,1757189453473,-500.0,0.00032474,2]
[383945790,1757189453483,-500.0,0.00032474,2]
[383945791,1757189453493,-150.0,0.00032474,3]
[383945792,1757189453503,-251.61319408,0.00032474,3]
[383945793,1757189453512,-200.0,0.00032474,3]
[383945794,1757189453522,-500.0,0.00032474,3]
[383945795,1757189453532,-200.0,0.00032474,3]
[383945796,1757189453541,-500.0,0.00032474,3]
[383945797,1757189453551,-500.0,0.00032474,3]
[383945798,1757189453560,-200.0,0.00032474,3]
[383945799,1757189453570,-361.82200047,0.00032474,3]
[383945800,1757189453579,-166.66,0.00032504,2]
[383945801,1757189453589,-151.0,0.00032517,2]
[383945802,1757189453598,-151.0,0.00032517,2]
[383945803,1757189453608,-151.0,0.00032517,2]
[383945804,1757189453618,-502.91969388,0.00032548,5]
[383945805,1757189453627,-227.718672,0.00032548,7]
[383945806,1757189453637,-227.718672,0.00032548,7]
[383945807,1757189453647,-227.718672,0.00032548,7]
[383945808,1757189453656,-227.718672,0.00032548,7]
[383945809,1757189453666,-1425.0,0.00032551,2]
[383945810,1757189453675,-200.0,0.00032579,2]
[383945811,1757189453684,-200.0,0.00032579,2]
[383945812,1757189453694,-200.0,0.00032579,2]
[383945813,1757189453704,-200.0,0.00032579,2]
[383945814,1757189453714,-200.0,0.00032579,2]
[383945815,1757189453724,-200.0,0.00032579,2]
[383945816,1757189453734,-200.0,0.00032579,2]
[383945817,1757189453743,-200.0,0.00032579,2]
[383945818,1757189453753,-200.0,0.00032579,2]
[383945819,1757189453763,-200.0,0.00032579,2]
[383945820,1757189453773,-200.0,0.00032579,2]
[383945821,1757189453782,-200.0,0.00032579,2]
[383945822,1757189453792,-200.0,0.00032579,2]
[383945823,1757189453802,-200.0,0.00032579,2]
[383945824,1757189453812,-200.0,0.00032579,2]
[383945825,1757189453821,-200.0,0.00032579,2]
[383945826,1757189453831,-200.0,0.00032579,2]
[383945827,1757189453841,-200.0,0.00032579,2]
[383945828,1757189453850,-200.0,0.00032579,2]
[383945829,1757189453860,-200.0,0.00032579,2]
[383945830,1757189453869,-200.0,0.00032579,2]
[383945831,1757189453880,-200.0,0.00032579,2]
[383945832,1757189453891,-200.0,0.00032579,2]
[383945833,1757189453901,-200.0,0.00032579,2]
[383945834,1757189453911,-200.0,0.00032579,2]
[383945835,1757189453920,-200.0,0.00032579,2]
[383945836,1757189453930,-200.0,0.00032579,2]
[383945837,1757189453939,-200.0,0.00032579,2]
[383945838,1757189453950,-200.0,0.00032579,2]
[383945839,1757189453963,-200.0,0.00032579,2]
[383945840,1757189453973,-200.0,0.00032579,2]
[383945841,1757189453983,-200.0,0.00032579,2]
[383945842,1757189453992,-244.07718,0.00032579,2]
[383945843,1757189454002,-151.0,0.00032579,7]
[383945844,1757189454012,-151.0,0.00032579,7]
[383945845,1757189454021,-151.0,0.00032579,7]
[383945846,1757189454031,-151.0,0.00032579,7]
[383945847,1757189454041,-151.0,0.00032579,7]
[383945848,1757189454050,-151.0,0.00032579,7]
[383945849,1757189454060,-151.0,0.00032579,7]
[383945850,1757189454069,-167.97,0.00032609,2]
[383945851,1757189454079,-195.78687301,0.00032634,3]
[383945852,1757189454089,-152.35,0.0003264,2]
[383945853,1757189454099,-4609.0,0.00032673,3]
[383945854,1757189454108,-161.272246,0.00032724,4]
[383945855,1757189454118,-500.0,0.00032748,2]
[383945856,1757189454128,-500.0,0.00032748,2]
[383945857,1757189454138,-500.0,0.00032748,2]
[383945858,1757189454147,-500.0,0.00032748,2]
[383945859,1757189454157,-500.0,0.00032748,2]
[383945860,1757189454166,-500.0,0.00032748,2]
[383945861,1757189454175,-251.33219181,0.00032748,3]
[383945862,1757189454185,-610.91696358,0.00032748,3]
[383945863,1757189454195,-391.9389076,0.00032748,3]
[383945864,1757189454205,-500.0,0.00032748,3]
[383945865,1757189454214,-152.35,0.00032763,2]
[383945866,1757189454224,-1425.0,0.00032783,2]
[383945867,1757189454234,-3044.7995877,0.00032788,2]
[383945868,1757189454243,-13291.67777036,0.00032835,2]
[383945869,1757189454252,-4078.53,0.00032835,2]
[383945870,1757189454262,-1176.0,0.00032835,2]
[383945871,1757189454272,-896.0,0.00032835,2]
[383945872,1757189454281,-6165.0,0.00032835,2]
[383945873,1757189454291,-2242.0,0.00032835,2]
[383945874,1757189454300,-4164.0,0.00032835,2]
[383945875,1757189454310,-21158.0,0.00032835,2]
[383945876,1757189454319,-725.0,0.00032835,2]
[383945877,1757189454328,-151.0,0.00032874,7]
[383945878,1757189454337,-300.0,0.00032876,10]
[383945879,1757189454346,-300.0,0.00032876,10]
[383945880,1757189454356,-1425.0,0.00032876,2]
[383945881,1757189454367,-151.0,0.00032877,7]
[383945882,1757189454377,-151.0,0.00032877,7]
[383945883,1757189454388,-219.373275,0.00032877,7]
[383945884,1757189454397,-151.0,0.00032877,7]
[383945885,1757189454407,-151.0,0.00032877,7]
[383945886,1757189454416,-285.401851,0.00032877,7]
[383945887,1757189454428,-151.0,0.00032877,7]
[383945888,1757189454437,-151.0,0.00032877,7]
[383945889,1757189454448,-285.401851,0.00032877,7]
[383945890,1757189454458,-151.0,0.00032877,7]
[383945891,1757189454468,-285.401851,0.00032877,7]
[383945892,1757189454479,-151.0,0.00032877,7]
[383945893,1757189454490,-151.0,0.00032877,7]
[383945894,1757189454501,-285.401851,0.00032877,7]
[383945895,1757189454511,-151.0,0.00032877,7]
[383945896,1757189454521,-285.401851,0.00032877,7]
[383945897,1757189454532,-285.401851,0.00032877,7]
[383945898,1757189454543,-285.401851,0.00032877,7]
[383945899,1757189454552,-285.401851,0.00032877,7]
[383945900,1757189454564,-151.0,0.00032877,7]
[383945901,1757189454575,-151.0,0.00032877,7]
[383945902,1757189454584,-151.0,0.00032877,7]
[383945903,1757189454594,-151.0,0.00032877,7]
[383945904,1757189454603,-151.0,0.00032877,7]
[383945905,1757189454613,-151.0,0.00032877,7]
[383945906,1757189454623,-151.0,0.00032877,7]
[383945907,1757189454633,-213.849627,0.00032877,7]
[383945908,1757189454643,-151.0,0.00032877,7]
[383945909,1757189454653,-151.0,0.00032877,7]
[383945910,1757189454663,-151.0,0.00032877,7]
[383945911,1757189454673,-151.0,0.00032877,7]
[383945912,1757189454682,-151.0,0.00032877,7]
[383945913,1757189454691,-151.0,0.00032877,7]
[383945914,1757189454701,-151.0,0.00032877,7]
[383945915,1757189454711,-151.0,0.00032877,7]
[383945916,1757189454721,-151.0,0.00032877,7]
[383945917,1757189454730,-151.0,0.00032877,7]
[383945918,1757189454739,-151.0,0.00032877,7]
[383945919,1757189454748,-151.0,0.00032877,7]
[383945920,1757189454758,-151.0,0.00032877,7]
[383945921,1757189454767,-278.015379,0.00032877,7]
[383945922,1757189454777,-176.2812,0.00032877,7]
[383945923,1757189454786,-176.2812,0.00032877,7]
[383945924,1757189454796,-176.2812,0.00032877,7]
[383945925,1757189454806,-176.2812,0.00032877,7]
[383945926,1757189454816,-176.2812,0.00032877,7]
[383945927,1757189454826,-176.2812,0.00032877,7]
[383945928,1757189454835,-176.2812,0.00032877,7]
[383945929,1757189454846,-176.2812,0.00032877,7]
[383945930,1757189454856,-176.2812,0.00032877,7]
[383945931,1757189454865,-176.2812,0.00032877,7]
[383945932,1757189454875,-176.2812,0.00032877,7]
[383945933,1757189454884,-176.2812,0.00032877,7]
[383945934,1757189454895,-151.0,0.00032877,7]
[383945935,1757189454904,-151.0,0.00032877,7]
[383945936,1757189454914,-151.0,0.00032877,7]
[383945937,1757189454924,-500.0,0.00032877,7]
[383945938,1757189454933,-500.0,0.00032877,7]
[383945939,1757189454943,-500.0,0.00032877,7]
[383945940,1757189454952,-500.0,0.00032877,7]
[383945941,1757189454962,-500.0,0.00032877,7]
[383945942,1757189454972,-500.0,0.00032877,7]
[383945943,1757189454981,-500.0,0.00032877,7]
[383945944,1757189454991,-500.0,0.00032877,7]
[383945945,1757189455000,-500.0,0.00032877,7]
[383945946,1757189455010,-500.0,0.00032877,7]
[383945947,1757189455019,-500.0,0.00032877,7]
[383945948,1757189455028,-500.0,0.00032877,7]
[383945949,1757189455039,-151.0,0.00032877,7]
[383945950,1757189455048,-151.0,0.00032877,7]
[383945951,1757189455058,-151.0,0.00032877,7]
[383945952,1757189455068,-151.0,0.00032877,7]
[383945953,1757189455078,-151.0,0.00032877,7]
[383945954,1757189455087,-151.0,0.00032877,7]
[383945955,1757189455097,-151.0,0.00032877,7]
[383945956,1757189455106,-276.575732,0.00032877,7]
[383945957,1757189455116,-151.0,0.00032877,7]
[383945958,1757189455125,-151.0,0.00032877,7]
[383945959,1757189455135,-151.0,0.00032877,7]
[383945960,1757189455145,-151.0,0.00032877,7]
[383945961,1757189455154,-198.605265,0.00032877,7]
[383945962,1757189455164,-151.0,0.00032877,7]
[383945963,1757189455174,-151.0,0.00032877,7]
[383945964,1757189455183,-151.0,0.00032877,7]
[383945965,1757189455193,-151.0,0.00032877,7]
[383945966,1757189455202,-151.0,0.00032877,7]
[383945967,1757189455213,-293.935401,0.00032877,7]
[383945968,1757189455223,-151.0,0.00032877,7]
[383945969,1757189455233,-151.0,0.00032877,7]
[383945970,1757189455242,-151.0,0.00032877,7]
[383945971,1757189455252,-151.0,0.00032877,7]
[383945972,1757189455262,-151.0,0.00032877,7]
[383945973,1757189455271,-151.0,0.00032877,7]
[383945974,1757189455281,-151.0,0.00032877,7]
[383945975,1757189455291,-151.0,0.00032877,7]
[383945976,1757189455302,-151.0,0.00032877,7]
[383945977,1757189455312,-151.0,0.00032877,7]
[383945978,1757189455321,-151.0,0.00032877,7]
[383945979,1757189455331,-151.0,0.00032877,7]
[383945980,1757189455341,-151.0,0.00032877,7]
[383945981,1757189455351,-239.524423,0.00032877,7]
[383945982,1757189455361,-184.492926,0.00032877,7]
[383945983,1757189455371,-151.0,0.00032877,7]
[383945984,1757189455381,-151.0,0.00032877,7]
[383945985,1757189455391,-159.492881,0.00032877,7]
[383945986,1757189455402,-151.0,0.00032877,7]
[383945987,1757189455411,-151.0,0.00032877,7]
[383945988,1757189455421,-151.0,0.00032877,7]
[383945989,1757189455430,-151.0,0.00032877,7]
[383945990,1757189455440,-151.0,0.00032877,7]
[383945991,1757189455450,-151.0,0.00032877,7]
[383945992,1757189455460,-151.0,0.00032877,7]
[383945993,1757189455469,-208.925248,0.00032877,7]
[383945994,1757189455480,-151.0,0.00032877,7]
[383945995,1757189455489,-151.0,0.00032877,7]
[383945996,1757189455499,-151.0,0.00032877,7]
[383945997,1757189455508,-151.0,0.00032877,7]
[383945998,1757189455518,-151.0,0.00032877,7]